{"text_format":"1","workbook":"xlsx","n_sheets":1,"sheets":["العمالة"],"not_rendered":{"charts":0,"images":0,"macros":0,"external_links":0,"defined_names":0,"comments":0,"pivot_tables":0},"unopened":[],"bounds":{"document_bytes":16777216,"sheet_cells":100000,"rows_first":2000,"rows_last":500,"rows_between":2000,"halvings":0,"cell_chars":16384,"cell_head_chars":4096},"cells_cut":0,"cells_raw":0,"read":"whole","date_system":"1900"}

{"sheet":"العمالة","index":0,"n_rows":24,"n_cols":11,"rows_kept":24,"cut":false,"hidden":false,"merged":[]}
["رقم العامل","اسم العامل","الجنسية","رقم المنشأة","إسم المنشأة","رقم الحدود","الإقامة - البطاقة","المهنة","تاريخ انتهاء الرخصة","صلاحية الرخصة","الحالة "]
["9 - 2 - 79168","MOHAMMAD RASHID GHULAM MOHAMMAD","باكستاني","9 - 16130","مؤسسة سحر بنت ابراهيم العطار للمقاولات","",2138195207,"بناء عام","2024-02-09",{"$f":"IF(AND(I2<>\"\",K2<>\"تم التجديد\",(I2-NOW())<100),IF(I2>NOW(),\"باقي \"&(ROUND((I2-NOW())+1,0))&\"\",\"منتهي قبل \"&(-ROUND((I2-NOW())+1,0))&\"\"),\"\")","v":""},"تم التجديد"]
["9 - 2 - 959472","ARSHAD -               -               ALI","باكستاني","9 - 16130","مؤسسة سحر بنت ابراهيم العطار للمقاولات","",2006852699,"عامل","2024-07-09",{"$f":"IF(AND(I3<>\"\",K3<>\"تم التجديد\",(I3-NOW())<100),IF(I3>NOW(),\"باقي \"&(ROUND((I3-NOW())+1,0))&\"\",\"منتهي قبل \"&(-ROUND((I3-NOW())+1,0))&\"\"),\"\")","v":""}]
["9 - 2 - 935600","MOHAMMADKHALID - - ALIMUHAMMAD","باكستاني","9 - 16129","مؤسسة سحر بنت ابراهيم العطار للمقاولات","",2121337501,"عامل","2022-07-10","","تم التجديد"]
["9 - 2 - 1009497","ARSHADALI -               -               SARDARMOHAMMAD","باكستاني","9 - 16130","مؤسسة سحر بنت ابراهيم العطار للمقاولات","",2087383366,"عامل","2024-04-11","باقي 21"]
["9 - 2 - 968879","IMRAN - - MUSTAFA","باكستاني","9 - 16130","مؤسسة سحر بنت ابراهيم العطار للمقاولات","",2144364854,"عامل","2025-07-12",""]
[null,null,null,null,"مؤسسة سحر بنت ابراهيم العطار للمقاولات",null,11111111111,"عامل","2023-03-12","منتهي قبل 375"]
[null,null,null,null,null,null,null,null,null,{"$f":"IF(AND(I8<>\"\",K8<>\"تم التجديد\",(I8-NOW())<100),IF(I8>NOW(),\"باقي \"&(ROUND((I8-NOW())+1,0))&\"\",\"منتهي قبل \"&(-ROUND((I8-NOW())+1,0))&\"\"),\"\")","v":""}]
[null,null,null,null,null,null,null,null,null,""]
[null,null,null,null,null,null,null,null,null,""]
[null,null,null,null,null,null,null,null,"2024-03-22","منتهي قبل -1"]
[null,null,null,null,null,null,null,null,null,""]
[null,null,null,null,null,null,null,null,null,""]
[null,null,null,null,null,null,null,null,null,""]
[null,null,null,null,null,null,null,null,null,""]
[null,null,null,null,null,null,null,null,null,""]
[null,null,null,null,null,null,null,null,null,""]
[null,null,null,null,null,null,null,null,null,""]
[null,null,null,null,null,null,null,null,null,""]
[null,null,null,null,null,null,null,null,null,""]
[null,null,null,null,null,null,null,null,null,""]
[null,null,null,null,null,null,null,null,null,""]
[null,null,null,null,null,null,null,null,null,""]
[null,null,null,null,null,null,null,null,null,""]